bitfinex/quotes_ETHUSD_20241204
["timestamp","ask_amount","ask_price","bid_price","bid_amount"]
[1733314217551,12.228,3742.6,3742.5,9.0540421]
[1733314218139,14.89993,3742.6,3742.5,7.90450261]
[1733314218425,9.39,3741.8,3741.0,2.67306]
[1733314218629,1.66,3741.7,3741.0,2.67306]
[1733314218844,1.66,3741.7,3740.4,1.5411]
[1733314219045,1.66,3741.6,3740.0,6.5411]
[1733314219338,1.66,3741.5,3740.7,2.67325]
[1733314219733,1.66,3741.3,3740.0,5.0]
[1733314219956,1.66,3741.3,3740.5,2.67342]
[1733314220162,8.84,3741.2,3740.0,5.0]
[1733314220474,10.5,3740.8,3740.3,2.67357]
[1733314220827,10.5,3740.8,3740.1,2.67372]
[1733314221034,10.5,3740.8,3740.3,2.67357]
[1733314221222,10.5,3740.8,3740.4,2.67348]
[1733314221452,10.5,3740.8,3740.3,3.0]
[1733314221979,10.5,3740.8,3740.3,2.67355]
[1733314222189,10.5,3740.8,3740.4,2.6735]
[1733314222323,1.11,3740.8,3740.7,5.67329]
[1733314223127,2.6631,3740.8,3740.7,3.0]
[1733314223327,2.6631,3740.8,3740.7,5.67329]
[1733314223943,3.7731,3740.8,3740.7,3.0]
[1733314224137,3.7731,3740.8,3740.3,2.67357]
[1733314224341,3.7731,3740.8,3740.1,3.0]
[1733314224567,3.7731,3740.8,3740.1,2.67372]
[1733314224927,0.55,3740.4,3740.0,5.0]
[1733314225129,1.08735573,3740.4,3740.0,5.0]
[1733314225375,1.6222,3740.3,3740.2,2.67365]
[1733314225532,1.6222,3740.3,3740.0,5.0]
[1733314225866,1.6222,3740.3,3740.2,2.67365]
[1733314226073,1.64735573,3740.4,3740.3,2.67358]
[1733314226292,1.11,3740.4,3740.3,5.67358]
[1733314226570,1.11,3740.4,3740.3,7.174572]
[1733314227270,2.22,3740.4,3740.3,5.67358]
[1733314228731,3.33,3740.4,3740.3,5.67358]
[1733314230359,4.44,3740.4,3740.3,5.67358]
[1733314232191,5.55,3740.4,3740.3,5.67358]
[1733314233806,6.66,3740.4,3740.3,5.67358]
[1733314234019,2.22,3740.8,3740.4,1.5545]
[1733314234173,2.22,3740.8,3740.7,2.67329]
[1733314234515,2.22,3740.8,3740.7,5.67329]
[1733314235283,3.33,3740.8,3740.7,5.67329]
[1733314236498,3.33,3740.8,3740.0,6.5705]
[1733314236832,3.33,3740.8,3740.6,2.6733]
[1733314237035,4.44,3740.8,3740.0,6.5705]
[1733314237343,4.44,3740.8,3740.7,2.67329]
[1733314237984,4.44,3740.8,3740.7,5.67329]
[1733314238232,4.44,3740.8,3740.4,3.0]
[1733314238735,5.55,3740.8,3740.1,5.67371]
[1733314238887,1.5598,3740.7,3740.1,5.67371]
[1733314239328,1.5598,3740.7,3740.1,2.67371]
[1733314240404,2.6698,3740.7,3740.2,3.0]
[1733314240926,0.55,3740.6,3740.1,3.0]
[1733314241238,0.55,3740.4,3740.0,5.0]
[1733314241604,1.08994784,3740.4,3740.0,5.0]
[1733314242141,1.5598,3740.1,3740.0,5.0]
[1733314242303,13.9618,3740.1,3740.0,5.0]
[1733314242793,14.21081332,3740.1,3740.0,4.66796875]
[1733314242994,16.88453332,3740.1,3740.0,3.07246276]
[1733314243224,16.88453332,3740.1,3740.0,1.32762063]
[1733314243426,1.5598,3739.4,3738.5,2.67485]
[1733314243734,1.5598,3739.2,3738.5,2.67485]
[1733314244293,1.5598,3739.2,3738.3,2.67494]
[1733314244537,1.5598,3739.2,3738.4,2.67492]
[1733314244690,1.5598,3739.2,3737.8,1.6518]
[1733314245034,0.55,3738.9,3738.2,3.17427]
[1733314245393,1.5598,3738.6,3738.2,0.4992]
[1733314245591,9.39,3738.5,3738.2,0.4992]
[1733314246036,0.55,3738.3,3738.2,0.4992]
[1733314246813,1.66,3738.3,3738.2,0.4992]
[1733314247348,6.36224767,3738.3,3738.2,0.4992]
[1733314247630,3.84972659,3738.3,3738.2,0.4992]
[1733314248398,4.95972659,3738.3,3738.2,0.4992]
[1733314248596,13.79972659,3738.3,3738.2,0.4992]
[1733314249049,16.57473659,3738.3,3738.2,0.4992]
[1733314249211,0.2,3737.6,3736.5,2.67623]
[1733314249410,0.55,3737.2,3736.1,0.75]
[1733314249606,0.55,3737.2,3736.3,2.67644]
[1733314250021,1.66,3737.2,3736.3,2.67644]
[1733314250475,1.66,3737.2,3737.1,5.67587]
[1733314251880,2.77,3737.2,3737.1,5.67587]
[1733314252233,0.2,3736.8,3736.1,0.75]
[1733314252584,0.55,3736.5,3736.1,0.75]
[1733314252750,0.55,3736.5,3736.3,2.67637]
[1733314253250,0.55,3736.5,3736.1,3.42656]
[1733314253450,1.66,3736.5,3736.4,2.67637]
[1733314253667,1.66,3736.5,3736.4,5.67637]
[1733314255249,2.77,3736.5,3736.4,5.67637]
[1733314255459,2.22,3736.5,3736.4,5.67637]
[1733314256972,3.33,3736.5,3736.4,5.67637]
[1733314258699,4.44,3736.5,3736.4,5.67637]
[1733314258864,3.10185,3736.5,3736.4,5.67637]
[1733314259200,2.77,3737.2,3737.1,5.67587]
[1733314259403,2.22,3737.2,3737.1,5.67587]
[1733314259759,0.5304936,3738.0,3737.9,2.67529]
[1733314260523,1.6404936,3738.0,3737.9,2.67529]
[1733314260683,2.1904936,3738.0,3737.9,2.67529]
[1733314261125,0.55,3737.9,3737.2,3.0]
[1733314261480,8.8908,3737.7,3736.9,2.676]
[1733314261627,0.55,3737.5,3736.2,1.581]
[1733314261823,0.55,3737.5,3736.2,1.8141]
[1733314262235,1.66,3737.5,3737.4,2.67565]
[1733314263830,2.77,3737.5,3737.0,3.0]
[1733314263987,11.0938285,3737.5,3736.2,1.581]
[1733314264177,11.0938285,3737.5,3736.6,3.0]
[1733314264379,2.7530285,3737.5,3737.3,2.67566]
[1733314265026,2.7530285,3737.5,3736.8,3.0]
[1733314265227,2.7530285,3737.5,3736.5,2.6763]
[1733314265431,3.8630285,3737.5,3736.5,2.6763]
[1733314265592,3.8630285,3737.5,3736.6,3.0]
[1733314265932,3.8630285,3737.5,3737.0,2.67593]
[1733314266317,3.8630285,3737.5,3736.9,3.0]
[1733314266494,3.8630285,3737.5,3736.2,4.581]
[1733314266688,0.55,3737.3,3736.6,2.67622]
[1733314267035,2.1225,3737.0,3736.2,2.67649]
[1733314267525,1.5155,3736.9,3736.0,2.67665]
[1733314267700,0.55,3736.8,3736.1,3.42657]
[1733314268085,0.55,3736.8,3736.2,2.67645]
[1733314268287,0.55,3736.8,3736.1,0.75]
[1733314268508,9.8593,3736.7,3736.1,0.75]
[1733314268726,0.55,3736.6,3736.1,0.75]
[1733314268887,0.55,3736.6,3736.2,2.6765]
[1733314269324,0.55,3736.6,3736.1,0.75]
[1733314269550,0.55,3736.6,3736.3,2.67644]
[1733314269704,0.55,3736.6,3736.1,0.75]
[1733314269705,0.55,3736.6,3736.1,3.42657]
[1733314269885,0.55,3736.6,3736.1,0.75]
[1733314270082,0.55,3736.6,3736.2,2.67647]
[1733314270286,1.09250534,3736.6,3736.2,2.67647]
[1733314270603,2.20250534,3736.6,3736.2,2.67647]
[1733314271002,2.20250534,3736.6,3736.1,0.75]
[1733314271301,0.55,3736.4,3736.1,0.75]
[1733314271830,0.55,3736.2,3736.1,0.75]
[1733314272631,2.1442,3736.2,3736.1,0.75]
[1733314273042,4.82071,3736.2,3736.1,0.75]
[1733314273335,13.16151,3736.2,3736.1,0.75]
[1733314273627,13.16151,3736.2,3734.5,1.6171]
[1733314273628,1.5171,3736.0,3734.5,2.67772]
[1733314273845,1.5171,3736.0,3734.2,1.6441]
[1733314273846,8.3408,3735.3,3734.2,1.6441]
[1733314274007,8.3408,3735.3,3734.5,2.67772]
[1733314274216,0.55,3735.2,3734.2,1.6441]
[1733314274922,0.55,3735.0,3734.4,2.67776]
[1733314275294,0.55,3735.0,3734.5,2.67772]
[1733314275495,1.66,3735.0,3734.5,2.67772]
[1733314276037,1.66,3735.0,3734.1,0.160994]
[1733314276333,0.55,3734.8,3734.1,0.160994]
[1733314276535,0.55,3734.6,3734.1,0.160994]
[1733314276836,0.55,3734.6,3734.5,2.67773]
[1733314277299,1.66,3734.6,3734.1,0.160994]
[1733314277501,1.66,3734.6,3734.4,2.6778]
[1733314278318,1.66,3734.6,3734.2,2.67794]
[1733314278518,1.66,3734.6,3734.1,0.160994]
[1733314278736,1.66,3734.6,3734.5,2.67773]
[1733314279037,2.77,3734.6,3734.5,2.67773]
[1733314280122,3.31605405,3734.6,3734.5,2.67773]
[1733314280541,3.31605405,3734.6,3734.1,0.160994]
[1733314280542,4.42605405,3734.6,3734.1,0.160994]
[1733314280731,4.42605405,3734.6,3734.3,2.6778]
[1733314281715,4.42605405,3734.6,3734.1,0.160994]
[1733314282000,4.42605405,3734.6,3734.4,2.6778]
[1733314282330,5.53605405,3734.6,3734.4,2.6778]
[1733314282894,5.53605405,3734.6,3734.5,2.67773]
[1733314283518,5.53605405,3734.6,3734.1,2.838944]
[1733314283734,0.55,3734.4,3734.1,2.838944]
[1733314283970,0.55,3734.4,3734.1,0.160994]
[1733314285153,1.6272,3734.2,3734.1,0.160994]
[1733314285316,10.518,3734.2,3734.1,0.160994]
[1733314285636,11.628,3734.2,3734.1,0.160994]
[1733314287097,10.0008,3734.2,3734.1,2.839014]
[1733314287327,11.1108,3734.2,3734.1,2.839014]
[1733314287524,11.1108,3734.2,3734.1,0.160994]
[1733314288138,12.7556,3734.2,3734.1,0.160994]
[1733314288338,12.5556,3734.2,3734.1,0.160994]
[1733314288569,12.5556,3734.2,3734.0,0.08]
[1733314288570,12.5556,3734.2,3734.0,1e-08]
[1733314288739,2.67818,3733.9,3732.7,2.67896]
[1733314288941,1.6448,3733.8,3732.7,2.67896]
[1733314289151,1.6448,3733.8,3732.2,1.6279]
[1733314289353,2.67831,3733.7,3732.2,1.6279]
[1733314289839,1.6157,3733.6,3732.2,4.6279]
[1733314290045,1.6157,3733.6,3732.6,2.67905]
[1733314290367,0.55,3733.5,3732.6,2.67905]
[1733314290878,0.55,3733.5,3732.7,2.67896]
[1733314290879,1.66,3733.5,3732.7,2.67896]
[1733314291077,1.66,3733.5,3732.7,2.67899]
[1733314291777,1.66,3733.5,3732.8,2.67895]
[1733314292071,1.66,3733.5,3732.4,3.0]
[1733314292381,2.77,3733.5,3733.2,2.67859]
[1733314292562,2.22,3733.5,3733.4,2.67852]
[1733314293073,3.8831,3733.5,3733.4,2.67852]
[1733314293271,3.8831,3733.5,3733.2,3.0]
[1733314293476,3.8831,3733.5,3732.6,4.5691]
[1733314293632,3.8831,3733.5,3732.9,2.67887]
[1733314293831,3.8831,3733.5,3732.8,2.67894]
[1733314294173,0.55,3733.4,3732.8,2.67894]
[1733314294486,0.55,3733.4,3732.6,1.5691]
[1733314294487,0.55,3733.4,3732.6,2.67903]
[1733314294838,0.55,3733.4,3732.5,3.0]
[1733314295064,3.06790188,3733.4,3732.1,2.67943]
[1733314295284,2.1489,3733.2,3731.7,2.67974]
[1733314295451,2.1489,3733.2,3732.2,2.67935]
[1733314295654,3.2589,3733.2,3732.2,2.67935]
[1733314295850,3.2589,3733.2,3732.1,2.67944]
[1733314296074,0.55,3733.0,3732.1,2.67944]
[1733314296390,0.55,3733.0,3732.1,2.67938]
[1733314296800,0.55,3732.8,3731.4,2.67989]
[1733314296956,0.55,3732.4,3731.6,2.67975]
[1733314297144,0.55,3732.4,3731.2,1.602]
[1733314297145,0.55,3732.4,3731.4,2.67989]
[1733314297346,0.55,3732.1,3731.2,2.68009]
[1733314297550,0.55,3731.7,3730.6,1.602]
[1733314297797,0.55,3731.7,3730.6,4.28253]
[1733314297953,0.55,3731.7,3730.9,2.68024]
[1733314298149,1.5989,3731.6,3730.6,1.602]
[1733314298476,0.55,3731.5,3730.6,2.68047]
[1733314298682,0.55,3731.5,3730.3,4.28269]
[1733314298898,1.66,3731.5,3730.6,2.68053]
[1733314299246,1.66,3731.5,3730.3,1.602]
[1733314299547,1.66,3731.5,3730.4,2.841654]
[1733314299983,0.55,3731.2,3730.4,0.160994]
[1733314300195,1.11,3731.5,3731.4,2.67995]
[1733314300494,1.66,3731.5,3731.2,2.68004]
[1733314300663,2.77,3731.5,3731.2,2.68004]
[1733314300864,2.77,3731.5,3731.2,2.68007]
[1733314301294,2.77,3731.5,3730.6,3.0]
[1733314301595,0.55,3731.4,3730.4,3.160994]
[1733314301744,0.55,3731.4,3730.8,2.68038]
[1733314301948,0.55,3731.4,3730.6,2.68051]
[1733314302157,0.55,3731.4,3730.4,0.160994]
[1733314302388,1.66,3731.4,3730.6,2.68053]
[1733314303153,1.66,3731.4,3730.5,2.68056]
[1733314303349,0.55,3731.2,3730.4,0.160994]
[1733314303584,0.55,3731.2,3730.4,2.841654]
[1733314303785,0.55,3731.2,3730.4,0.160994]
[1733314303947,0.55,3731.0,3730.4,0.160994]
[1733314304589,1.11,3731.2,3730.5,1.6298]
[1733314304751,1.11,3731.2,3731.1,2.68017]
[1733314305752,2.22,3731.2,3731.1,2.68017]
[1733314305949,2.22,3731.2,3730.5,4.6298]
[1733314306158,2.22,3731.2,3730.9,2.68025]
[1733314306455,1.6588,3731.0,3730.4,0.160994]
[1733314306655,1.6588,3731.0,3730.7,2.68046]
[1733314306958,1.6588,3731.0,3730.4,3.160994]
[1733314307155,1.6588,3731.0,3730.5,3.0]
[1733314307472,1.6588,3731.0,3730.9,2.68031]
[1733314307473,1.11,3731.0,3730.9,2.68031]
[1733314308006,1.11,3731.0,3730.9,7.19801]
[1733314308709,2.22,3731.2,3730.9,8.185864]
[1733314309006,2.22,3731.2,3731.1,5.68017]
[1733314310458,3.33,3731.2,3731.1,5.68017]
[1733314312194,4.44,3731.2,3731.1,5.68017]
[1733314313658,5.55,3731.2,3731.1,5.68017]
[1733314314082,5.55,3731.2,3731.1,2.68017]
[1733314314281,5.55,3731.2,3730.7,4.5675]
[1733314314486,5.55,3731.2,3731.1,5.68017]
[1733314315275,6.66,3731.2,3731.1,5.68017]
[1733314315477,6.66,3731.2,3730.9,2.68029]
[1733314316200,0.55,3731.1,3730.6,2.68047]
[1733314316871,1.6548,3731.0,3730.6,2.68047]
[1733314317716,1.6548,3731.0,3730.4,0.160994]
[1733314318000,1.6548,3731.0,3730.7,2.68042]
[1733314318358,1.6548,3731.0,3730.5,2.68058]
[1733314318761,0.55,3730.9,3730.4,2.841654]
[1733314318990,0.55,3730.9,3730.4,0.160994]
[1733314319916,2.7648,3731.0,3730.4,0.160994]
[1733314320427,1.11,3731.0,3730.9,2.68031]
[1733314320597,2.22,3731.0,3730.9,2.68031]
[1733314321240,2.22,3731.0,3730.9,5.68031]
[1733314321744,3.7557,3731.0,3730.9,5.68031]
[1733314322250,2.22,3731.0,3730.9,5.68031]
[1733314322397,3.33,3731.0,3730.9,5.68031]
[1733314324140,4.44,3731.0,3730.9,5.68031]
[1733314325184,4.44,3731.0,3730.7,2.68044]
[1733314325418,4.44,3731.0,3730.4,0.160994]
[1733314325771,1.6208,3730.8,3730.4,0.160994]
[1733314326960,0.55,3730.7,3730.4,0.160994]
[1733314327261,3.2306,3730.5,3730.4,0.160994]
[1733314327439,4.8769,3730.5,3730.4,0.160994]
[1733314328587,4.8769,3730.5,3727.7,0.1]
[1733314328588,5.0133,3730.5,3728.7,1.6502]
[1733314328758,5.0133,3730.5,3728.7,2.68188]
[1733314328759,2.1124,3729.9,3728.7,2.68188]
[1733314328961,1.5624,3729.8,3728.7,2.68188]
[1733314329155,0.55,3729.5,3728.3,2.68218]
[1733314329354,0.55,3729.3,3728.3,2.68218]
[1733314329688,0.55,3729.1,3728.3,2.68218]
[1733314329857,0.55,3729.1,3728.3,2.68216]
[1733314330473,1.66,3729.1,3728.3,2.68216]
[1733314331988,1.66,3729.1,3727.8,1.6502]
[1733314331989,1.11,3729.1,3727.8,1.6502]
[1733314332143,2.22,3729.1,3729.0,2.68168]
[1733314332343,2.22,3729.1,3729.0,5.68168]
[1733314333981,3.33,3729.1,3729.0,5.68168]
[1733314334615,2.1676743,3730.2,3730.0,2.68096]
[1733314334895,2.1676743,3730.2,3729.9,0.74999]
[1733314335237,0.2,3730.1,3729.9,0.74999]
[1733314335750,2.0612,3730.0,3729.9,0.74999]
[1733314335962,4.74216,3730.0,3729.9,0.74999]
[1733314336979,1.5112,3730.0,3729.9,0.74999]
[1733314337188,1.11,3730.0,3729.9,0.74999]
[1733314337386,1.11,3730.0,3729.9,3.43102]
[1733314337557,1.11,3730.0,3729.9,0.74999]
[1733314338452,3.4536,3730.0,3729.9,0.74999]
[1733314338671,6.13456,3730.0,3729.9,0.74999]
[1733314338855,10.39496815,3730.0,3729.9,0.16089893]
[1733314340391,4.5636,3730.0,3729.9,0.16089893]
[1733314340569,0.2,3729.3,3728.6,0.03801297]
[1733314340773,0.55,3729.0,3728.6,0.03801297]
[1733314341484,0.75,3729.0,3728.6,0.03801297]
[1733314342252,1.86,3729.0,3728.6,0.03801297]
[1733314343691,1.66,3729.0,3728.6,0.03801297]
[1733314343905,2.77,3729.0,3728.6,0.03801297]
[1733314344051,2.22,3729.0,3728.9,2.68175]
[1733314345472,3.33,3729.0,3728.9,2.68175]
[1733314346850,3.33,3729.0,3728.9,7.8084173]
[1733314347147,4.44,3729.0,3728.9,7.8084173]
[1733314347682,1.75832,3729.0,3728.9,7.26825]
[1733314347894,3.33,3730.0,3729.9,2.68103]
[1733314348298,3.33,3730.0,3729.9,4.27573]
[1733314348699,1.11,3730.5,3730.2,1.5947]
[1733314348880,1.11,3730.5,3730.4,5.68067]
[1733314350888,2.22,3730.5,3730.4,5.68067]
[1733314351998,2.22,3730.5,3730.2,1.5947]
[1733314351999,2.22,3730.5,3729.8,1.6642]
[1733314352194,2.22,3730.5,3730.1,2.68088]
[1733314352522,2.22,3730.5,3730.3,2.68074]
[1733314352726,3.33,3730.5,3730.3,2.68074]
[1733314353218,3.33,3730.5,3729.8,1.6642]
[1733314353434,3.33,3730.5,3730.1,2.68086]
[1733314353733,3.33,3730.5,3730.2,2.68081]
[1733314354077,3.33,3730.5,3730.1,0.03801297]
[1733314354278,4.44,3730.5,3730.4,2.68067]
[1733314355026,4.44,3730.5,3730.4,5.68067]
[1733314355994,5.55,3730.5,3730.4,5.68067]
[1733314357721,6.66,3730.5,3730.2,2.6808]
[1733314357894,6.66,3730.5,3730.1,0.03801297]
[1733314358096,6.66,3730.5,3730.4,2.68067]
[1733314358508,6.66,3730.5,3730.4,4.20667]
[1733314358792,6.66,3730.5,3730.4,4.50766493]
[1733314358997,6.66,3730.5,3730.4,7.50766493]
[1733314359213,6.66,3730.5,3730.4,7.20667]
[1733314359391,7.77,3730.5,3730.4,7.20667]
[1733314360036,7.77,3730.5,3730.1,3.03801297]
[1733314360199,7.77,3730.5,3730.1,0.03801297]
[1733314361096,8.1408,3730.2,3730.1,0.03801297]
[1733314362734,9.2508,3730.2,3730.1,0.03801297]
[1733314363454,9.78149869,3730.2,3730.1,0.03801297]
[1733314363757,4.87151869,3730.2,3730.1,0.03801297]
[1733314364333,5.98151869,3730.2,3730.1,0.03801297]
[1733314364733,3.30069869,3730.2,3730.1,0.03801297]
[1733314365125,2.75069869,3730.2,3730.1,0.03801297]
[1733314366130,3.86069869,3730.2,3730.1,0.03801297]
[1733314366934,7.09151869,3730.2,3730.1,0.03801297]
[1733314367144,8.69391869,3730.2,3730.1,0.03801297]
[1733314367347,8.1408,3730.1,3726.6,0.160994]
[1733314367564,0.55,3728.4,3727.1,2.68304]
[1733314367733,0.55,3728.4,3727.1,1.5225]
[1733314367947,1.527,3728.5,3727.1,1.5225]
[1733314367948,0.55,3728.1,3727.1,1.5225]
[1733314368129,0.55,3728.1,3727.2,2.68297]
[1733314368334,0.5487198,3727.6,3727.1,1.5225]
[1733314368633,3.23212,3728.4,3727.1,4.20553]
[1733314369053,0.55,3728.2,3727.1,4.20553]
[1733314369361,0.55,3728.1,3727.1,4.20553]
[1733314369573,0.55,3728.1,3727.2,2.68294]
[1733314369774,0.55,3728.1,3727.3,2.68289]
[1733314369939,0.55,3728.1,3727.1,4.20554]
[1733314370321,0.55,3728.1,3727.1,1.5225]
[1733314370640,0.55,3728.1,3727.2,2.68296]
[1733314370819,0.55,3728.1,3726.7,1.5225]
[1733314371024,1.11,3728.2,3726.8,0.4683494]
[1733314371225,0.52345122,3728.0,3726.9,3.0]
[1733314371447,1.11,3728.1,3726.8,0.4683494]
[1733314371670,1.11,3728.1,3727.8,2.68248]
[1733314372032,1.11,3728.1,3727.7,2.68257]
[1733314372237,1.11,3728.1,3727.3,3.0]
[1733314372637,1.11,3728.1,3727.3,2.68283]
[1733314372832,2.22,3728.1,3727.4,3.0]
[1733314373665,2.22,3728.1,3727.4,2.68282]
[1733314373964,2.22,3728.1,3727.4,2.68283]
[1733314374566,3.33,3728.1,3727.5,2.68275]
[1733314376281,4.44,3728.1,3727.4,3.0]
[1733314376652,4.44,3728.1,3727.3,2.6829]
[1733314376972,4.44,3728.1,3727.4,3.0]
[1733314377373,4.44,3728.1,3726.9,1.6485]
[1733314377534,10.27275815,3728.1,3727.0,2.68311]
[1733314377738,11.38275815,3728.1,3727.0,2.68311]
[1733314378138,11.38275815,3728.1,3726.9,1.6485]
[1733314378377,11.38275815,3728.1,3727.1,2.68304]
[1733314379588,12.49275815,3728.1,3727.1,2.68304]
[1733314380551,9.81040815,3728.1,3727.1,2.68304]
[1733314381156,3.15040815,3727.2,3726.6,0.160994]
[1733314381354,3.15040815,3726.7,3726.6,0.160994]
[1733314381552,3.15040815,3726.7,3725.9,2.68384]
[1733314381784,3.15040815,3726.7,3726.0,2.68383]
[1733314381954,3.15040815,3726.7,3725.5,2.6842]
[1733314382142,3.15040815,3726.7,3725.6,2.68413]
[1733314382341,3.15040815,3726.7,3725.5,2.6842]
[1733314382579,3.15040815,3726.7,3726.0,3.0]
[1733314382780,3.15040815,3726.7,3725.9,2.68385]
[1733314382981,3.15040815,3726.7,3726.1,2.68377]
[1733314382982,4.26040815,3726.7,3726.1,2.68377]
[1733314383192,4.26040815,3726.7,3725.7,3.0]
[1733314383395,4.26040815,3726.7,3725.4,1.6461]
[1733314383538,1.5927,3726.6,3725.7,2.68399]
[1733314383891,1.5927,3726.6,3725.8,3.0]
[1733314384672,2.7027,3726.6,3725.8,3.0]
[1733314384978,3.15040815,3726.3,3725.1,1.6219]
[1733314385374,3.15040815,3726.3,3725.6,2.68411]
[1733314385699,2.7027,3726.6,3725.1,1.6219]
[1733314385993,0.52485661,3726.3,3725.3,3.0]
[1733314386191,1.11,3726.6,3726.5,2.68348]
[1733314386547,1.11,3726.6,3725.9,2.68391]
[1733314386749,1.657645,3726.6,3726.0,2.68378]
[1733314387387,1.657645,3726.6,3726.1,2.68374]
[1733314387558,1.657645,3726.6,3726.4,2.68353]
[1733314387986,2.767645,3726.6,3726.4,2.68353]
[1733314388181,2.767645,3726.6,3726.4,2.68348]
[1733314389161,2.767645,3726.6,3726.0,2.68379]
[1733314389370,2.767645,3726.6,3726.5,2.68348]
[1733314389703,3.33,3726.6,3726.5,2.68348]
[1733314391381,4.44,3726.6,3726.5,2.68348]
[1733314392977,5.55,3726.6,3726.5,2.68348]
[1733314394581,6.66,3726.6,3726.5,2.68348]
[1733314395090,6.66,3726.6,3725.6,3.0]
[1733314395273,6.66,3726.6,3726.3,3.0]
[1733314395473,1.5608,3726.5,3725.6,1.6349]
[1733314395673,1.5608,3726.5,3726.1,2.6837]
[1733314395876,1.5608,3726.5,3725.8,5.68398]
[1733314396074,1.5608,3726.5,3725.6,1.6349]
[1733314396326,2.6708,3726.5,3726.3,2.68356]
[1733314396472,2.6708,3726.5,3726.0,5.68384]
[1733314396673,2.6708,3726.5,3726.3,2.68356]
[1733314396884,2.6708,3726.5,3726.4,2.68355]
[1733314398017,3.7808,3726.5,3726.4,2.68355]
[1733314399347,2.22,3726.5,3726.4,8.239582]
[1733314399829,3.33,3726.5,3726.4,8.239582]
[1733314399984,3.33,3726.5,3726.4,7.24655]
[1733314400323,3.88,3726.5,3726.4,7.24655]
[1733314400556,3.88,3726.5,3726.4,5.68355]
[1733314400862,3.88,3726.5,3726.4,2.68355]
[1733314401540,4.99,3726.5,3726.4,2.68355]
[1733314401735,4.99,3726.5,3726.4,5.68355]
[1733314401938,4.99,3726.5,3726.4,6.220276]
[1733314402471,4.44,3726.5,3726.4,6.220276]
[1733314402825,4.44,3726.5,3726.4,5.68355]
[1733314403028,5.55,3726.5,3726.4,5.68355]
[1733314403669,6.1,3726.5,3726.4,5.68355]
[1733314404539,7.21,3726.5,3726.4,5.68355]
[1733314405261,7.21,3726.5,3726.4,2.68355]
[1733314406336,8.32,3726.5,3726.4,2.68355]
[1733314407938,9.43,3726.5,3726.4,2.68355]
[1733314408665,0.55,3726.4,3725.6,1.6262]
[1733314408818,0.55,3726.4,3726.3,2.68362]
[1733314409016,0.55,3726.4,3725.8,2.68394]
[1733314409268,0.55,3726.4,3725.6,3.0]
[1733314409434,0.55,3726.2,3725.8,2.68392]
[1733314409965,0.55,3726.2,3725.4,2.68427]
[1733314410167,0.55,3726.2,3726.1,2.68377]
[1733314411027,0.55,3726.2,3725.7,2.68399]
[1733314411225,1.66,3726.2,3725.8,2.68393]
[1733314411421,1.66,3726.2,3725.3,1.614]
[1733314411889,1.66,3726.2,3725.9,2.68384]
[1733314412049,1.66,3726.2,3726.0,2.68384]
[1733314412246,1.66,3726.2,3725.3,4.29831]
[1733314412445,1.66,3726.2,3725.4,3.0]
[1733314412958,2.77,3726.2,3725.3,1.614]
[1733314413174,2.77,3726.2,3726.0,2.68378]
[1733314413375,2.77,3726.2,3725.8,2.68396]
[1733314413579,2.77,3726.2,3725.8,2.68392]
[1733314414160,2.77,3726.2,3725.9,2.68389]
[1733314414360,2.77,3726.2,3725.7,2.68405]
[1733314414608,3.88,3726.2,3725.4,2.68427]
[1733314415408,3.88,3726.2,3725.5,2.68418]
[1733314416101,3.88,3726.2,3725.6,2.68412]
[1733314416396,4.99,3726.2,3725.5,2.68414]
[1733314416794,4.99,3726.2,3725.6,2.68411]
[1733314416997,4.99,3726.2,3725.0,20.0]
[1733314416998,1.6137,3725.6,3725.0,20.0]
[1733314417178,0.55,3725.5,3725.0,20.0]
[1733314417912,1.66,3725.5,3725.1,2.68447]
[1733314418260,1.66,3725.5,3725.0,20.0]
[1733314419009,1.66,3725.5,3725.1,2.68446]
[1733314419519,2.77,3725.5,3725.1,2.68446]
[1733314419721,1.6614,3725.4,3725.0,22.68455]
[1733314419879,0.55,3725.3,3725.0,22.68455]
[1733314420201,0.55,3725.3,3725.2,2.68441]
[1733314420580,0.55,3725.3,3725.0,20.0]
[1733314421294,1.66,3725.3,3725.0,20.0]
[1733314421491,2.1403,3725.1,3725.0,13.69727005]
[1733314422388,5.3612965,3725.1,3725.0,13.69727005]
[1733314422603,5.3612965,3725.1,3725.0,13.46367005]
[1733314422912,6.4712965,3725.1,3725.0,13.46367005]
[1733314423926,2.68494,3724.5,3722.5,1.6573]
[1733314424216,0.55,3723.7,3723.2,2.68585]
[1733314424379,0.55,3723.7,3723.6,2.68557]
[1733314424579,0.53242456,3723.7,3723.6,2.68557]
[1733314424915,0.55,3723.7,3723.6,3.222701]
[1733314425083,0.55,3723.7,3723.6,2.68557]
[1733314425478,0.55,3723.7,3722.9,2.847054]